Cogmind - Beta 16 @@@ ROGUE MODE // 2025.11.28 @ 19:26:14 Player: the Result: Destroyed by G-73 Enforcer with Phase Gun Performance ------------- Evolutions (6) 3000 Regions Visited (21) 4200 Robots Destroyed (364) 1820 Value Destroyed (15047) 15047 Prototype IDs (63) 1260 Alien Tech Used (0) 0 Bonus (8303) 8303 TOTAL SCORE: 33630 Bonus ------- Triggered High Security 500 High Alert Combat Kills 2029 Follower Combat Kills 2909 Met Data Miner 300 Met Imprinter 300 Was Imprinted 300 Met Warlord at Base 500 MAIN.C Attacked Warlord 500 Warlord Defense Kills 2458 Friendly Fire -1493 Cogmind --------- Core Integrity 0/1150 Matter 249/300 Energy 99/100 System Corruption 10% Temperature Cool (-200) Movement Core (50) Location -4/Extension Parts ------- > --- POWER (2) -------- (None) > --- PROPULSION (6) --- (None) > --- UTILITY (8) ------ (None) > --- WEAPON (3) ------- (None) > --- INVENTORY (5) ---- Zionite Composite Leg I Zionite Biocell (600) Long-range Sensor Array Precision Energy Filter Advanced Transmission Jammer Peak State ------------ > --- POWER ------------ Light Antimatter Reactor Light Antimatter Reactor > --- PROPULSION ------- Enhanced Flexi-carbon Leg Enhanced Flexi-carbon Leg Enhanced Flexi-carbon Leg Myomer Leg Shield Leg Experimental Myomer Leg > --- UTILITY ---------- Advanced Coolant Injector High-capacity Storage Unit Enhanced Optical Array Long-range Sensor Array Advanced Signal Interpreter Experimental Core Analyzer Precision Energy Filter Centrium Medium Armor Plating > --- WEAPON ----------- Heavy Tesla Rifle Heavy Tesla Rifle Vortex Driver > --- INVENTORY -------- Vortex Chain Reactor Zionite Composite Leg I Myomer Leg Experimental Myomer Leg Advanced Cryofiber Web Experimental Heat Sink Zionite Biocell Improved Weapon Cycler Advanced Transmission Jammer Zionite Weapon Casing Improved Force Field System Mapper Ghost Barrier Quantum Router Heavy Tesla Rifle Zionite Laser-S Zionite Laser-S Zionite Laser-M Vortex Driver [Rating: 149] Favorites ----------- Power Fission Core Engine Makeshift Power Source Power Core Fission Core Reactor Light Antimatter Reactor Propulsion Light Armored Exoskeleton Treads Light Treads Leg Light Armored Exoskeleton Utility High-capacity Storage Unit Device Improved Cooling System Storage High-capacity Storage Unit Processor Core Analyzer Hackware Hacking Suite Protection Layered Medium Armor Plating Weapon Neutron Cannon Energy Gun Plasma Rifle Energy Cannon Neutron Cannon Ballistic Gun Enhanced Autogun Ballistic Cannon Light Cannon Launcher Heavy Rocket Launcher Special Weapon Mining Laser Impact Weapon Flail Slashing Weapon Katana Special Melee Weapon Datajack Build | -11 -10 -10 -8 -8 -7 -7 -7 -7 -6 -6 -6 -6 -6 -5 -5 -5 -5 -5 -4 -4 -4 ------- Run | Yrd Mat Sub Mat Sto Fac Low Low Dat Pro Fac Low Low Zio Pro Fac Upp Upp War Pro Fac Ext Slots Evolved 12 | . . . 4 . 2 . . . . 2 . . . . 2 . . . . 2 . Power 1 | . . . . . . . . . . . . . . . . . . . . 1 . Propulsion 4 | . . . 2 . . . . . . 2 . . . . . . . . . . . Utility 6 | . . . 1 . 2 . . . . . . . . . 2 . . . . 1 . Weapon 1 | . . . 1 . . . . . . . . . . . . . . . . . . Parts Attached 253 | 7 14 6 34 29 23 4 3 15 4 13 1 1 3 1 12 2 3 18 4 35 21 Power 35 | 1 1 . 4 5 3 1 . 3 . 3 . . . . 4 . . 1 1 5 3 Engine 12 | 1 . . 2 3 2 1 . 1 . 1 . . . . 1 . . . . . . Core 12 | . 1 . 2 2 1 . . 1 . 2 . . . . 2 . . 1 . . . Reactor 11 | . . . . . . . . 1 . . . . . . 1 . . . 1 5 3 Propulsion 58 | 2 3 . 13 13 6 . . 3 . 4 1 . . . 1 . . 1 . 5 6 Treads 32 | . 2 . 13 13 4 . . . . . . . . . . . . . . . . Leg 26 | 2 1 . . . 2 . . 3 . 4 1 . . . 1 . . 1 . 5 6 Wheel . | . . . . . . . . . . . . . . . . . . . . . . Hover . | . . . . . . . . . . . . . . . . . . . . . . Flight . | . . . . . . . . . . . . . . . . . . . . . . Utility 86 | 2 4 2 6 4 7 . 1 7 3 4 . . 1 1 7 1 1 9 1 18 7 Device 37 | 1 1 1 2 . 3 . . 2 . 2 . . 1 1 3 1 . 5 1 11 2 Storage 5 | 1 2 . . . . . . 1 . . . . . . . . . . . . 1 Processor 7 | . . . . . 1 . . . 1 1 . . . . 1 . . 2 . 1 . Hackware 9 | . . . 1 3 1 . . . . . . . . . 1 . . . . . 3 Protection 28 | . 1 1 3 1 2 . 1 4 2 1 . . . . 2 . 1 2 . 6 1 Artifact . | . . . . . . . . . . . . . . . . . . . . . . Weapon 74 | 2 6 4 11 7 7 3 2 2 1 2 . 1 2 . . 1 2 7 2 7 5 Energy Gun 29 | . . . 7 . 3 . . . . . . 1 . . . 1 1 4 . 7 5 Energy Cannon 12 | . 2 . 2 . 1 . . 2 1 2 . . . . . . . 1 1 . . Ballistic Gun 14 | 2 . . 1 6 2 1 2 . . . . . . . . . . . . . . Ballistic Cannon 8 | . 2 4 1 . . . . . . . . . . . . . . 1 . . . Launcher 5 | . . . . . 1 . . . . . . . 2 . . . 1 1 . . . Special Weapon 1 | . 1 . . . . . . . . . . . . . . . . . . . . Impact Weapon 1 | . . . . . . . . . . . . . . . . . . . 1 . . Slashing Weapon 3 | . . . . 1 . 2 . . . . . . . . . . . . . . . Piercing Weapon . | . . . . . . . . . . . . . . . . . . . . . . Special Melee Weapon 1 | . 1 . . . . . . . . . . . . . . . . . . . . Unidentified Prototypes 32 | . . . 2 2 . . . 4 . . . . 1 . 3 . . 10 . 7 3 Corrupted Parts 1 | . . . . . . . . . . . . . . . . . . . . 1 . System Corruption 1 | . . . . . . . . . . . . . . . . . . . . 1 . Parts Lost 49 | . . . 3 1 5 . 1 3 . . 1 . 1 . . . . 1 . 6 27 Power 6 | . . . 1 . . . . . . . . . . . . . . . . 1 4 Propulsion 14 | . . . . . 4 . . . . . . . . . . . . . . . 10 Utility 17 | . . . 1 1 1 . 1 2 . . . . . . . . . . . 4 7 Weapon 12 | . . . 1 . . . . 1 . . 1 . 1 . . . . 1 . 1 6 Highest Loss Streak 14 | . . . 1 1 2 . 1 2 . . 1 . 1 . . . . 1 . 2 14 To Critical Strikes . | . . . . . . . . . . . . . . . . . . . . . . Average Backups 18 | 4 11 19 19 19 18 18 18 17 19 19 19 19 18 19 18 19 18 18 19 18 18 Power 1 | . . . . 1 1 2 3 1 1 1 1 1 1 1 1 2 2 2 2 2 1 Propulsion 3 | 1 1 1 3 3 2 1 1 2 5 4 4 5 5 5 5 5 5 5 6 3 2 Utility 9 | . 3 6 6 7 8 10 9 9 10 11 12 12 11 11 8 9 9 8 8 10 8 Weapon 4 | 1 5 10 8 8 6 3 3 3 3 3 2 1 1 2 3 3 2 1 2 2 4 Tool/Special . | . . . . . . . . . . . . . . . . . . . . . . Unused Backups 47 | 2 4 2 12 4 6 1 . 4 . 1 . . . . 3 . . 2 . 3 3 Power 5 | . . . . 1 . 1 . . . . . . . . . . . . . 2 1 Propulsion 2 | . . . . . . . . . . . . . . . 1 . . . . . 1 Utility 18 | . . . 5 2 4 . . 3 . . . . . . 1 . . 1 . 1 1 Weapon 20 | 2 4 2 6 1 2 . . . . 1 . . . . 1 . . 1 . . . Tool/Special 2 | . . . 1 . . . . 1 . . . . . . . . . . . . . Average Slot Usage (%) 88 | . 99 100 99 99 97 84 83 75 84 83 85 86 84 86 85 82 81 76 81 93 97 Engine 1 | . 2 . 4 4 6 . 7 1 7 2 . . . . . . . . . . . Core 4 | . 11 14 4 4 . 6 . 3 . 3 6 6 6 6 4 5 5 5 2 . . Reactor 1 | . . . . . . . . 1 . . . . . . . . . . 2 8 9 Treads 7 | . 15 28 35 35 28 . . . . . . . . . . . . . . . . Leg 16 | . 12 . . . . 15 15 15 15 23 26 26 26 26 21 17 17 16 17 26 29 Device 11 | . 12 13 9 3 6 7 7 1 7 12 12 13 12 13 16 17 17 17 17 14 12 Storage 7 | . 14 14 9 9 7 7 7 7 7 6 6 6 6 6 5 5 5 5 5 5 5 Processor 7 | . . . . . 1 7 7 7 7 12 13 13 11 6 10 11 11 11 11 12 14 Hackware 2 | . . . 6 10 19 . . . . . . . . . . . . . . . . Protection 5 | . 1 . 2 4 1 15 14 13 15 . . . 1 6 5 5 5 4 5 8 6 Energy Gun 5 | . . . 18 4 9 . . . . . . . . . . . . 9 16 14 14 Energy Cannon 8 | . 9 . 4 . 1 5 . 6 21 19 19 19 18 20 17 16 16 . . . . Ballistic Gun 3 | . 6 . 3 22 10 13 19 . . . . . . . . . . . . . . Ballistic Cannon 1 | . 8 28 1 . . . . . . . . . . . . . . . . . . Peak Build Rating 149 | 7 14 14 28 34 58 59 55 68 69 76 77 78 80 80 92 91 91 106 106 147 149 Average Rating 68 | 4 10 12 24 31 42 58 54 55 68 74 75 76 76 76 86 87 87 87 99 127 142 On Entrance 62 | . 7 14 12 26 32 58 52 51 68 68 74 73 78 80 76 87 87 85 97 101 146 Avg Prop Armor Cover (%) 9 | 24 . . . . . . . . . . . . 8 . . . . . . . . Naked Turns . | . . . . . . . . . . . . . . . . . . . . . . Heaviest Build 113 | 13 52 56 68 68 93 93 86 100 90 89 90 82 93 93 97 90 90 101 86 108 113 Greatest Support 162 | 20 40 40 82 82 82 60 60 86 60 96 96 96 96 96 96 90 90 90 90 162 162 Greatest Overweight (x) 2 | . 1 1 . . 1 1 1 2 1 1 . . 1 . 1 . . 1 . 1 2 Average Overweight (x) . | . . 1 . . . 1 1 . 1 . . . . . . . . . . . . Largest Inventory Capacity 20 | 8 20 20 20 20 20 20 20 20 20 20 20 20 20 20 20 20 20 20 20 20 20 Average Capacity 19 | 5 13 20 20 20 20 20 20 20 20 20 20 20 20 20 20 20 20 20 20 20 20 Most Carried 20 | 8 20 20 20 20 20 20 20 20 20 20 20 20 20 20 20 20 20 20 20 20 20 Average Carried 19 | 4 11 19 19 19 19 19 19 18 20 19 19 20 19 19 19 20 19 18 19 19 19 Final Capacity 20 | 8 20 20 20 20 20 20 20 20 20 20 20 20 20 20 20 20 20 20 20 20 5 Final Carried 20 | 5 20 20 20 20 18 20 18 20 20 20 20 20 20 20 20 20 19 20 20 20 5 Class Distribution -------------------- 16% | Mutant 15% | Scientist-Skirmisher 12% | Scavenger-Gunner 12% | Tank 10% | Gunner 10% | Scientist-Gunner 4% | Hacker-Gunner 4% | Scavenger-Skirmisher 3% | Derelict-Tank Dominant Class ---------------- Mutant | -10/Materials Mutant | -10/Subcaves Scavenger-Gunner | -8/Materials Tank | -8/Storage Hacker-Gunner | -7/Factory Tank | -7/Lower Caves Derelict-Tank | -7/Lower Caves Mutant | -7/Data Miner Tank | -6/Proximity Caves Scientist-Skirmisher | -6/Factory Scientist-Skirmisher | -6/Lower Caves Scientist-Skirmisher | -6/Lower Caves Scientist-Skirmisher | -6/Zion Scientist-Gunner | -5/Proximity Caves Scientist-Gunner | -5/Factory Gunner | -5/Upper Caves Gunner | -5/Upper Caves Mutant | -5/Warlord Scavenger-Gunner | -4/Proximity Caves Messiah-Tank | -4/Factory Scavenger-Skirmisher | -4/Extension Resources | -11 -10 -10 -8 -8 -7 -7 -7 -7 -6 -6 -6 -6 -6 -5 -5 -5 -5 -5 -4 -4 -4 ----------- Run | Yrd Mat Sub Mat Sto Fac Low Low Dat Pro Fac Low Low Zio Pro Fac Upp Upp War Pro Fac Ext Matter Collected 8285 | 254 401 315 827 1712 800 426 252 360 156 237 160 70 65 105 302 129 186 400 122 681 325 Remotely . | . . . . . . . . . . . . . . . . . . . . . . Salvage Created 15038 | 140 639 274 1253 2315 1701 574 205 411 160 612 202 37 . . 1393 188 763 592 429 1432 1718 Parts 727 | 17 56 17 69 136 67 24 24 18 12 29 6 5 . . 58 12 16 21 12 65 63 Haulers Intercepted 14 | . 2 . 4 6 . . . . . . . . . . 1 . . . . 1 . Recyclers Shooed 8 | . 2 . 1 1 1 . . . . . . . . . 1 . . . . 2 . Parts Field Recycled . | . . . . . . . . . . . . . . . . . . . . . . Retrieved Matter . | . . . . . . . . . . . . . . . . . . . . . . Parts Self-Destructed 143 | . . 15 . . . 23 17 . 10 . 5 5 . 16 . 18 22 . 12 . . Prevented 7 | . . . . . . . . . . . 1 . . 3 . 3 . . . . . Parts Restored . | . . . . . . . . . . . . . . . . . . . . . . Kills | -11 -10 -10 -8 -8 -7 -7 -7 -7 -6 -6 -6 -6 -6 -5 -5 -5 -5 -5 -4 -4 -4 ------- Run | Yrd Mat Sub Mat Sto Fac Low Low Dat Pro Fac Low Low Zio Pro Fac Upp Upp War Pro Fac Ext Combat Hostiles Destroyed 280 | . 11 8 28 38 30 11 10 4 7 13 5 1 . . 16 4 14 21 5 20 34 Melee 5 | . . . 1 . . . . 4 . . . . . . . . . . . . . Guns 148 | . 4 . 24 38 23 5 6 . . . . . . . . . . 8 4 16 20 Cannons 90 | . 7 8 3 . 5 6 . . 5 9 2 1 . . 15 4 11 1 . . 13 AOE 28 | . . . . . 1 . 4 . 2 4 2 . . . . . 3 12 . . . Classes Destroyed 25 | 2 6 1 4 2 1 . 3 . 1 . . . . . 1 . . 3 . . 1 Worker 12 | . 3 . 4 2 1 . . . . . . . . . 1 . . . . 1 . Builder 9 | . . . 2 . 1 . . . . 1 . . . . 2 . . . . 3 . Tunneler 4 | 4 . . . . . . . . . . . . . . . . . . . . . Hauler 14 | . 2 . 4 6 . . . . . . . . . . 1 . . . . 1 . Recycler 15 | 1 1 . 2 4 5 . . . . . . . . . 2 . . . . . . Minesweeper 2 | . . . . . . . 1 . . . . . . . . . 1 . . . . Operator 9 | . 2 . . 3 . . . . . 1 . . . . 2 . . . . 1 . Drone 2 | . . . . . . . . . 2 . . . . . . . . . . . . Watcher 14 | . 3 . 3 2 1 . . . . 3 . . . . . . . . . 2 . Swarmer 51 | . 6 . 3 7 6 . 6 . 3 7 . . . . . 1 1 5 . 4 2 Saboteur 1 | . . . . . . . . . . . . . . . . . . . . . 1 Grunt 104 | . 5 2 15 15 12 9 . . . 3 3 . . . 6 1 8 3 1 7 14 Brawler 8 | . . . 1 1 . . . . . . . . . . 1 . 2 2 . 1 . Duelist 6 | . . . . 2 . 1 . . . . . . . . . . 1 . . . 2 Protector 5 | . . . . 1 . . . . . . . . . . . . . 3 . . 1 Sentry 34 | . . . 8 10 4 . . . . 2 . . . . 1 1 2 . 1 2 3 Demolisher 5 | . . . . . . . . . . . . . . . . . . 2 . . 3 Hunter 16 | . . . 1 2 4 . . . . . 1 . . . . 1 . 2 2 2 1 Programmer 28 | . . . . . 4 1 1 . 1 1 1 1 . . 7 . . 2 . 4 5 Behemoth 5 | . . . . . . . 1 . 1 . . . . . 1 . . . 1 . 1 Enhanced Grunt 4 | . . . . . . . . 4 . . . . . . . . . . . . . Striker 1 | . . . . . . . . . . . . . . . . . . 1 . . . Executioner 1 | . . . . . . . . . . . . . . . . . . 1 . . . Subdweller 6 | . . 6 . . . . . . . . . . . . . . . . . . . Thief 2 | . . . . . . . 2 . . . . . . . . . . . . . . Thug 1 | . . . . . . . . . . . . . . . . . . . . . 1 Savage 1 | . . . . . . . . . . . . . . . . . . . . . 1 Guerrilla 1 | . . . . . . . . . . . . . . . . . . . . . 1 Mutant 2 | . . . . . . . . . . . . . . . 1 . . 1 . . . Best Kill Streak 13 | 5 4 2 7 7 8 4 4 2 3 8 3 1 . . 4 2 8 11 2 13 12 Combat Bots Only 12 | . 3 2 6 7 5 4 4 2 3 7 3 1 . . 3 2 8 11 2 10 12 Max Kills in Single Turn 8 | 1 2 1 3 2 2 1 2 1 1 3 1 1 . . 2 1 3 8 1 2 2 Gunslinging 1 | . . . 1 1 1 . . . . . . . . . . . . . . . 1 Exploded 8 | . . . . . 1 . 2 . 1 3 1 . . . . . 3 8 . . . Melee 1 | . . . 1 . . . . 1 . . . . . . . . . . . . . Uniques/NPCs Destroyed 1 | . . . . . . . . 1 . . . . . . . . . . . . . Data Miner (-7/Data Miner) Combat | -11 -10 -10 -8 -8 -7 -7 -7 -7 -6 -6 -6 -6 -6 -5 -5 -5 -5 -5 -4 -4 -4 -------- Run | Yrd Mat Sub Mat Sto Fac Low Low Dat Pro Fac Low Low Zio Pro Fac Upp Upp War Pro Fac Ext Hostile Shots Fired 1407 | . 36 23 108 98 241 68 57 31 44 106 36 2 . 2 74 18 22 28 36 148 229 Missed 402 | . 5 8 25 32 77 24 14 5 9 37 11 1 . . 27 6 3 7 9 42 60 Hits 1005 | . 31 15 83 66 164 44 43 26 35 69 25 1 . 2 47 12 19 21 27 106 169 Melee 16 | . . . . 5 . . 4 . . . . . . . . . 1 . . . 6 Projectile 989 | . 31 15 83 61 164 44 39 26 35 69 25 1 . 2 47 12 18 21 27 106 163 AOE 21 | . . . . . . . . . . . . . . . . . . 7 . . 14 Critical Strikes 33 | . . . 4 4 3 2 . . . 1 1 . . . 2 1 . 1 3 4 7 Part Disruptions 2 | . . . . . . . . 1 . . . . . . 1 . . . . . . Damage Taken 19138 | . 347 365 1269 1044 1949 682 669 1209 633 981 450 15 . 61 1148 240 381 811 570 2169 4145 Core 2668 | . 69 146 160 101 173 39 28 232 21 153 39 . . . 231 58 34 . 29 369 786 Absorbed by Shields 289 | . . . . . . . . . . . . . . . . . . . . 152 137 Redirected to Shielding 710 | . . . . . . . . . . . . . . . . . . . . 478 232 Ignored by Resistances 244 | . . . 6 . 41 . 170 . . . . . . . 27 . . . . . . Regen/Repaired (Parts) 2008 | . . . 126 16 . . . . . . . . 1755 . 38 . . 42 . 31 . Core Remaining (%) 56 | 100 . 14 . 52 . . . . 29 . . . . 77 . . . . 64 . . Volleys Fired 963 | 23 73 38 101 128 88 34 23 . 30 39 16 5 1 3 68 11 18 39 70 89 66 Largest 3 | 2 2 2 3 3 3 3 3 . 3 3 3 3 1 3 3 3 3 3 3 3 3 Hottest 273 | 40 120 60 205 195 189 146 99 . 270 270 270 270 90 270 270 270 270 225 225 225 273 Shots Fired 2325 | 46 130 76 230 358 259 104 58 1 47 73 36 16 1 9 148 33 51 55 210 215 169 Gun 1603 | 46 73 . 173 351 230 68 54 . . . . . . . . . . 43 210 213 142 Cannon 695 | . 48 76 57 7 29 36 . 1 44 71 32 16 1 9 148 33 49 9 . 2 27 Launcher 18 | . . . . . . . 4 . 3 2 4 . . . . . 2 3 . . . Special 9 | . 9 . . . . . . . . . . . . . . . . . . . . Kinetic 783 | 46 77 76 42 302 109 68 54 . . . . . . . . . . 9 . . . Thermal 1414 | . 53 . 188 56 150 36 . 1 44 71 32 16 1 9 148 33 49 3 210 195 119 Explosive 15 | . . . . . . . 4 . 3 2 4 . . . . . 2 . . . . Electromagnetic 41 | . . . . . . . . . . . . . . . . . . . . 18 23 Entropic 72 | . . . . . . . . . . . . . . . . . . 43 . 2 27 Robot Hit Streak 22 | 8 11 16 17 12 13 10 7 . 16 12 10 5 . 4 11 4 6 5 22 10 8 Robot Miss Streak 8 | 3 4 1 7 5 4 5 3 . 2 2 2 1 . 3 4 5 2 3 2 6 8 Penetration Max 1 | . . . . . 1 1 . . . . . . . . . . . . . . 1 Secondary Targets 20 | . . . 7 4 3 . . . . . . . . . . . . 1 . 1 4 Max Gunslinging Chain 2 | . . . 1 1 2 . . . . . . . . . . . . 1 . 1 1 Shots Hit Robots 1245 | 31 75 35 165 211 163 54 26 30 19 36 16 3 . 6 76 10 28 33 29 110 89 Core Hits 822 | 10 33 15 218 136 72 24 19 19 9 24 11 1 . 2 33 5 25 36 13 52 65 Critical Kills 3 | . . . . 1 1 . . . . . . . . . 1 . . . . . . Critical Parts Destroyed 8 | . . . . 2 1 . . . . . . . . . . . . 5 . . . Critical Strikes 41 | . . 1 3 3 4 . 1 4 . . . . . . 1 . . 6 1 3 14 Burn 6 | . . . . . 2 . . . . . . . . . . . . . 1 3 . Meltdown 2 | . . . . . 1 . . . . . . . . . 1 . . . . . . Destroy 5 | . . . . 3 1 . 1 . . . . . . . . . . . . . . Blast 5 | . . 1 3 . . . . . . . . . . . . . . 1 . . . Sever 4 | . . . . . . . . 4 . . . . . . . . . . . . . Detonate 5 | . . . . . . . . . . . . . . . . . . 5 . . . Sunder 14 | . . . . . . . . . . . . . . . . . . . . . 14 Melee Attacks 88 | . 2 . . 1 3 . . 66 . . . . . . . . . . 16 . . Impact 16 | . . . . . . . . . . . . . . . . . . . 16 . . Slashing 70 | . . . . 1 3 . . 66 . . . . . . . . . . . . . Piercing . | . . . . . . . . . . . . . . . . . . . . . . Sneak Attacks 3 | . 2 . . . . . . 1 . . . . . . . . . . . . . Combat Hostiles . | . . . . . . . . . . . . . . . . . . . . . . Follow-up Attacks 10 | . . . . . . . . 10 . . . . . . . . . . . . . Damage Inflicted 39342 | 241 859 553 3036 3638 3539 1380 1028 948 936 1474 856 127 . 223 3737 397 1536 5168 640 3553 5473 Guns 19529 | 241 364 . 2369 3629 2816 889 661 . . . . . . . . . . 1544 640 3527 2849 Cannons 12988 | . 471 553 466 . 532 491 . . 777 1261 431 127 . 223 3188 397 997 451 . . 2623 Explosions 5771 | . . . 165 . 181 . 367 . 159 213 425 . . . 549 . 539 3173 . . . Melee 948 | . . . . . . . . 948 . . . . . . . . . . . . . Ramming 82 | . . . 36 9 10 . . . . . . . . . . . . . . 26 1 Kinetic 7868 | 241 401 553 501 2996 1175 889 661 . . . . . . . . . . 451 . . . Thermal 20797 | . 458 . 2334 633 2354 491 . . 777 1261 431 127 . 223 3364 397 997 525 640 3191 2594 Explosive 2241 | . . . 165 . . . 367 . 159 213 425 . . . 373 . 539 . . . . Electromagnetic 870 | . . . . . . . . . . . . . . . . . . 279 . 336 255 Impact . | . . . . . . . . . . . . . . . . . . . . . . Slashing 948 | . . . . . . . . 948 . . . . . . . . . . . . . Piercing . | . . . . . . . . . . . . . . . . . . . . . . Entropic 6536 | . . . . . . . . . . . . . . . . . . 3913 . . 2623 Highest Corruption 10 | . . . . . 4 4 4 4 5 1 2 2 2 . 4 4 4 4 . 3 10 Average Corruption 3 | . . . . . 2 4 4 4 4 1 1 2 2 . 3 4 4 4 . 1 3 Corruption Purged 3 | . . . . . . . . . . . . . . . . . . . . 3 . Corruption Blocked . | . . . . . . . . . . . . . . . . . . . . . . Effects 233 | . . . . . 17 44 28 22 29 1 13 8 . . 18 19 15 . . 18 1 Message Errors 70 | . . . . . 7 11 7 6 10 . 4 2 . . 8 5 3 . . 7 . Matter Fused 52 | . . . . . 3 12 7 5 6 . 1 . . . 4 6 6 . . 1 1 Heat Flow Errors 33 | . . . . . 3 6 3 5 4 . 3 . . . 1 2 3 . . 3 . Energy Discharges 26 | . . . . . . 5 5 3 1 1 3 1 . . 2 1 1 . . 3 . Parts Rejected 3 | . . . . . 1 1 . . . . . . . . . . 1 . . . . Parts Fused 1 | . . . . . . . . 1 . . . . . . . . . . . . . Data Loss (minor) 22 | . . . . . 1 4 3 1 3 . . 4 . . 1 2 . . . 3 . Data Loss (major) 9 | . . . . . 1 2 1 . 1 . 1 . . . 1 1 . . . 1 . Misfires 8 | . . . . . . 2 1 1 . . 1 1 . . . 1 1 . . . . Alerts 6 | . . . . . 1 1 . . 3 . . . . . 1 . . . . . . Weapon Failures 3 | . . . . . . . 1 . 1 . . . . . . 1 . . . . . Overload Shots . | . . . . . . . . . . . . . . . . . . . . . . Overflow Damage 704 | . . . 57 . 5 . . . 17 27 . . . . 172 . . 102 . . 324 Projectiles 473 | . . . 33 . . . . . 17 15 . . . . 84 . . . . . 324 Explosions 229 | . . . 22 . 5 . . . . 12 . . . . 88 . . 102 . . . Melee 2 | . . . 2 . . . . . . . . . . . . . . . . . . Knockbacks 9 | . . 8 . . . . . . . . . . . . . . . 1 . . . Impact . | . . . . . . . . . . . . . . . . . . . . . . Kinetic 9 | . . 8 . . . . . . . . . . . . . . . 1 . . . Secondary . | . . . . . . . . . . . . . . . . . . . . . . Self-Inflicted Damage 172 | . . . . . . . 14 . 27 . . . . . 131 . . . . . . Shots 4 | . . . . . . . 1 . 1 . . . . . 2 . . . . . . Rammed 9 | . . . 6 1 2 . . . . . . . . . . . . . . . . Targets Rammed 15 | . . . 8 1 2 . . . . . . . . . . . . . . 3 1 Kicked 4 | . . . . . . . . . . . . . . . . . . . . 3 1 Crushed 2 | . . . 2 . . . . . . . . . . . . . . . . . . Highest Temperature 537 | . 336 . 318 405 420 250 240 238 337 381 351 204 32 363 312 270 378 40 400 448 537 Average Temperature 107 | . 101 . 110 115 100 76 98 102 90 105 129 93 17 158 108 127 129 19 96 113 107 Received Heat Transfer 3832 | . 84 51 675 432 516 414 60 . 48 162 135 . . 18 102 72 141 21 60 343 498 Effects 16 | . . . 2 6 1 . . . . . 1 . . . 1 . 1 . 4 . . Shutdowns 2 | . . . . . 1 . . . . . . . . . . . 1 . . . . Energy Bleed 4 | . . . . 1 . . . . . . 1 . . . 1 . . . 1 . . Interference 5 | . . . 2 3 . . . . . . . . . . . . . . . . . Matter Decay 1 | . . . . 1 . . . . . . . . . . . . . . . . . Damage (major) 4 | . . . . 1 . . . . . . . . . . . . . . 3 . . Siege Activations . | . . . . . . . . . . . . . . . . . . . . . . Martial Activations . | . . . . . . . . . . . . . . . . . . . . . . Shielding Activations . | . . . . . . . . . . . . . . . . . . . . . . Robots Disrupted 1 | . . . . . . . . . . . . . . . 1 . . . . . . Combat Hostiles 1 | . . . . . . . . . . . . . . . 1 . . . . . . Robots Corrupted 1 | . . . . . . . . . . . . . . . . . . . . 1 . Combat Hostiles 1 | . . . . . . . . . . . . . . . . . . . . 1 . Parts Fried 6 | . . . . . . . . . . . . . . . . . . 1 . 4 1 Impact Corruptions 1 | . . . 1 . . . . . . . . . . . . . . . . . . Robots Melted 8 | . . . . . 1 . . . . . 1 . . . 1 . . . 1 3 1 Combat Hostiles 8 | . . . . . 1 . . . . . 1 . . . 1 . . . 1 3 1 Parts Melted 55 | . 3 . 1 . 5 . . . . 5 1 . . . 4 1 1 1 3 23 7 Heat Transferred 24977 | . 938 . 2972 770 4752 950 . . 300 1950 600 100 . 50 1650 200 450 276 1550 4472 2997 Parts Sabotaged 1 | . . . . . . . . . . . . . . . . . 1 . . . . Parts Stolen 1 | . . . . . . . 1 . . . . . . . . . . . . . . Parts Stripped . | . . . . . . . . . . . . . . . . . . . . . . Power Chain Reactions 1 | . . . . . . . . . . . . . . . 1 . . . . . . Alert | -11 -10 -10 -8 -8 -7 -7 -7 -7 -6 -6 -6 -6 -6 -5 -5 -5 -5 -5 -4 -4 -4 ------- Run | Yrd Mat Sub Mat Sto Fac Low Low Dat Pro Fac Low Low Zio Pro Fac Upp Upp War Pro Fac Ext Maximum Alert Level 5 | . . . 1 2 2 . . . . 1 . . . . 1 . . . . 1 5 Low Security (%) 66 | 100 100 . 87 21 46 . . . . 86 . . . . 91 . . . . 76 7 Level 1 19 | . . . 12 47 40 . . . . 13 . . . . 8 . . . . 23 7 Level 2 10 | . . . . 30 13 . . . . . . . . . . . . . . . 46 Level 3 1 | . . . . . . . . . . . . . . . . . . . . . 13 Level 4 . | . . . . . . . . . . . . . . . . . . . . . 7 Level 5 . | . . . . . . . . . . . . . . . . . . . . . . High Security 1 | . . . . . . . . . . . . . . . . . . . . . 16 Max Security . | . . . . . . . . . . . . . . . . . . . . . . Peak Influence 2416 | 15 120 . 309 681 476 . . . . 290 . . . . 252 . . . . 378 2416 Initial 307 | . . . . 104 307 . . . . 156 . . . . . . . . . 4 184 Average 226 | 2 45 . 84 331 222 . . . . 90 . . . . 115 . . . . 130 899 Influence Increases 11686 | 25 431 50 970 1178 941 255 195 20 140 655 145 30 . 93 893 195 345 495 120 1080 3430 Destroy 0b10 Robot/C 6580 | . 220 40 560 740 600 220 160 20 100 260 100 20 . 60 440 140 300 360 100 500 1640 Destroy 0b10 Robot/NC 490 | 25 55 . 75 95 40 5 5 . 10 25 . . . . 50 . 5 15 . 45 40 Destroy Leader 1214 | . 50 10 164 206 162 30 30 . 30 66 30 10 . 10 92 10 10 . 20 118 166 Allied During Kill 1502 | . . . . . . . . . . . . . . 23 33 15 30 . . 60 1341 Successful Hack 200 | . 69 . 10 25 36 . . . . 27 . . . . 12 . . . . . 21 Disable Machine 450 | . 15 . 30 30 30 . . . . 45 . . . . 90 . . . . 180 30 Destroy Structure 620 | . 7 . 41 7 28 . . . . 37 . . . . 176 . . . . 162 162 Advance Influence 150 | . . . . . . . . . . 150 . . . . . . . . . . . Partial Spotted 60 | . 15 . 30 . . . . . . . . . . . . . . . . 15 . Lose Combat Pursuer 420 | . . . 60 75 45 . . . . 45 15 . . . . 30 . 120 . . 30 Influence Decreases 9330 | 25 415 66 722 750 1162 710 195 20 130 411 399 30 . 93 650 416 211 330 434 711 1450 Entered New Map 1556 | . . 8 . 144 369 169 . . . 4 95 . . . . 90 5 156 321 3 192 Time Decay 6144 | 25 415 58 494 556 583 541 195 20 130 397 294 30 . 73 520 326 166 164 113 546 498 Lost Part 430 | . . . 20 10 50 . . . . . 10 . . . . . . 10 . 60 270 Lost Ally 842 | . . . . 40 10 . . . . 10 . . . 20 130 . 40 . . 102 490 Purge Threat 358 | . . . 208 . 150 . . . . . . . . . . . . . . . . Squads Dispatched 55 | . 1 . 4 8 12 . . . . 2 . . . . 6 . 1 . . 5 16 Investigation 9 | . . . 1 1 5 . . . . . . . . . 1 . . . . . 1 Extermination 12 | . . . . . 2 . . . . 2 . . . . 4 . . . . 4 . Reinforcement 11 | . 1 . 2 2 . . . . . . . . . . 1 . . . . 1 4 Assault 16 | . . . . 3 1 . . . . . . . . . . . 1 . . . 11 Garrison 7 | . . . 1 2 4 . . . . . . . . . . . . . . . . Intercept . | . . . . . . . . . . . . . . . . . . . . . . Searches Triggered . | . . . . . . . . . . . . . . . . . . . . . . Construction Impeded 6 | . . . . . . . . . . . . . . . 1 . . . . 1 4 Haulers Reinforced . | . . . . . . . . . . . . . . . . . . . . . . Active Scanning Responses . | . . . . . . . . . . . . . . . . . . . . . . Cargo Convoy Interrupts . | . . . . . . . . . . . . . . . . . . . . . . Stealth | -11 -10 -10 -8 -8 -7 -7 -7 -7 -6 -6 -6 -6 -6 -5 -5 -5 -5 -5 -4 -4 -4 --------- Run | Yrd Mat Sub Mat Sto Fac Low Low Dat Pro Fac Low Low Zio Pro Fac Upp Upp War Pro Fac Ext Distress Signals 30 | . 4 . 5 5 5 . . . . . . . . . 4 . . 1 . 2 4 Communications Jammed 26 | . . . . . . . . . . . . . . . . . . . . 26 . Distress Signals 26 | . . . . . . . . . . . . . . . . . . . . 26 . Times Spotted 536 | . 19 8 44 50 43 11 10 4 6 25 6 1 . 8 30 8 16 94 8 36 109 Peak Tracking Total 15 | . 3 2 5 5 5 4 4 3 3 8 3 . . 5 6 4 5 10 3 5 15 Tactical Retreats 19 | . . . 4 4 2 . . . . 1 1 . . . . 2 . 4 . . 1 Traps | -11 -10 -10 -8 -8 -7 -7 -7 -7 -6 -6 -6 -6 -6 -5 -5 -5 -5 -5 -4 -4 -4 ------- Run | Yrd Mat Sub Mat Sto Fac Low Low Dat Pro Fac Low Low Zio Pro Fac Upp Upp War Pro Fac Ext Traps Triggered 9 | . 1 1 . 1 1 . . . . . . . . . 1 . . . . 2 2 Indirectly . | . . . . . . . . . . . . . . . . . . . . . . Trap Hack Attempts 58 | . 58 . . . . . . . . . . . . . . . . . . . . Triggered . | . . . . . . . . . . . . . . . . . . . . . . Disarmed 5 | . 2 . 3 . . . . . . . . . . . . . . . . . . Reprogrammed 3 | . 3 . . . . . . . . . . . . . . . . . . . . Reused . | . . . . . . . . . . . . . . . . . . . . . . Traps Extracted . | . . . . . . . . . . . . . . . . . . . . . . Installed . | . . . . . . . . . . . . . . . . . . . . . . Triggered . | . . . . . . . . . . . . . . . . . . . . . . Machines | -11 -10 -10 -8 -8 -7 -7 -7 -7 -6 -6 -6 -6 -6 -5 -5 -5 -5 -5 -4 -4 -4 ---------- Run | Yrd Mat Sub Mat Sto Fac Low Low Dat Pro Fac Low Low Zio Pro Fac Upp Upp War Pro Fac Ext Machines Disabled 37 | . 1 . 2 2 2 . . 1 . 3 . . . . 6 . 1 2 . 12 5 Max in Single Turn 2 | . 1 . 1 1 1 . . 1 . 1 . . . . 2 . 1 1 . 2 1 Garrison Access 3 | . . . . 1 . . . . . . . . . . 1 . . . . 1 . Machines Repaired . | . . . . . . . . . . . . . . . . . . . . . . Machines Dismantled . | . . . . . . . . . . . . . . . . . . . . . . Machines Sabotaged . | . . . . . . . . . . . . . . . . . . . . . . Overloaded Fab Kills . | . . . . . . . . . . . . . . . . . . . . . . Hacking | -11 -10 -10 -8 -8 -7 -7 -7 -7 -6 -6 -6 -6 -6 -5 -5 -5 -5 -5 -4 -4 -4 --------- Run | Yrd Mat Sub Mat Sto Fac Low Low Dat Pro Fac Low Low Zio Pro Fac Upp Upp War Pro Fac Ext Machines Accessed 76 | . 10 . 10 9 12 1 1 3 . 10 . . . . 7 . . 1 . 5 7 Terminals 44 | . 8 . 7 7 7 . . . . 8 . . . . . . . . . . 7 Fabricators 7 | . . . . . 5 . . . . . . . . . 1 . . . . 1 . Repair Stations 6 | . . . 1 1 . . . . . 1 . . . . 2 . . . . 1 . Recycling Units 3 | . 2 . . . . . . . . . . . . . 1 . . . . . . Scanalyzers 6 | . . . 2 . . . . . . 1 . . . . 1 . . . . 2 . Garrison Access 4 | . . . . 1 . . . . . . . . . . 2 . . . . 1 . Total Hacks 233 | . 39 . 35 26 44 1 1 23 . 30 . . . . 13 . . 1 . 9 11 Successful 149 | . 19 . 20 16 34 1 1 23 . 17 . . . . 5 . . 1 . 7 5 Failed 84 | . 20 . 15 10 10 . . . . 13 . . . . 8 . . . . 2 6 Catastrophic 13 | . 2 . 3 . . . . . . 4 . . . . 2 . . . . . 2 Database Lockouts . | . . . . . . . . . . . . . . . . . . . . . . Manual 190 | . 32 . 20 17 29 . . . . 15 . . . . 31 . . 1 . 29 16 Terminals 144 | . 36 . 26 23 31 . . . . 17 . . . . . . . . . . 11 Fabricators 20 | . . . . . 13 . . . . . . . . . 5 . . . . 2 . Repair Stations 10 | . . . 2 2 . . . . . 1 . . . . 3 . . . . 2 . Recycling Units 5 | . 3 . . . . . . . . . . . . . 2 . . . . . . Scanalyzers 24 | . . . 7 . . . . . . 12 . . . . 1 . . . . 4 . Garrison Access 4 | . . . . 1 . . . . . . . . . . 2 . . . . 1 . Terminal Hacks 64 | . 7 . 4 6 14 1 1 23 . 2 . . . . . . . 1 . . 5 Record 6 | . . . . . . . . 6 . . . . . . . . . . . . . Part Schematic 15 | . . . . 2 3 . . 10 . . . . . . . . . . . . . Robot Schematic 4 | . . . . . . . . 4 . . . . . . . . . . . . . Robot Analysis 2 | . 2 . . . . . . . . . . . . . . . . . . . . Prototype ID Bank 9 | . 3 . . 1 2 . . 3 . . . . . . . . . . . . . Open Door 9 | . . . . 1 . 1 1 . . . . . . . . . . 1 . . 5 Branch Access Points 2 | . . . . . 1 . . . . 1 . . . . . . . . . . . Terminal Index 2 | . 1 . . . 1 . . . . . . . . . . . . . . . . Fabricator Index 1 | . . . . . 1 . . . . . . . . . . . . . . . . Scanalyzer Index 1 | . . . . . 1 . . . . . . . . . . . . . . . . Alert Level 2 | . . . . . 2 . . . . . . . . . . . . . . . . Unreport Threat 3 | . . . 2 . 1 . . . . . . . . . . . . . . . . Locate Traps 3 | . 1 . 1 . . . . . . 1 . . . . . . . . . . . Disarm Traps 1 | . . . 1 . . . . . . . . . . . . . . . . . . Hauler Manifests 2 | . . . . 1 1 . . . . . . . . . . . . . . . . Registered Components 1 | . . . . 1 . . . . . . . . . . . . . . . . . Zone Layout 1 | . . . . . 1 . . . . . . . . . . . . . . . . Fabricator Hacks 12 | . . . . . 9 . . . . . . . . . 2 . . . . 1 . Network Status 2 | . . . . . 1 . . . . . . . . . . . . . . 1 . Load Schematic 6 | . . . . . 5 . . . . . . . . . 1 . . . . . . Build 4 | . . . . . 3 . . . . . . . . . 1 . . . . . . Repair Station Hacks 6 | . . . 2 2 . . . . . . . . . . . . . . . 2 . Scan Component 3 | . . . 1 1 . . . . . . . . . . . . . . . 1 . Repair 3 | . . . 1 1 . . . . . . . . . . . . . . . 1 . Recycling Unit Hacks 1 | . 1 . . . . . . . . . . . . . . . . . . . . Retrieve Components 1 | . 1 . . . . . . . . . . . . . . . . . . . . Scanalyzer 22 | . . . 7 . . . . . . 11 . . . . 1 . . . . 3 . Insert Component 7 | . . . 2 . . . . . . 4 . . . . . . . . . 1 . Analyze 3 | . . . 1 . . . . . . 2 . . . . . . . . . . . Retrieve Study 12 | . . . 4 . . . . . . 5 . . . . 1 . . . . 2 . Garrison Access Hacks 3 | . . . . 1 . . . . . . . . . . 1 . . . . 1 . Seal Access 3 | . . . . 1 . . . . . . . . . . 1 . . . . 1 . Unauthorized Hacks 41 | . 11 . 7 7 11 . . . . 4 . . . . 1 . . . . . . Terminals 37 | . 11 . 7 7 8 . . . . 4 . . . . . . . . . . . Track 1 | . . . 1 . . . . . . . . . . . . . . . . . . Assimilate 5 | . 1 . 1 . 2 . . . . 1 . . . . . . . . . . . Botnet 11 | . 3 . 2 2 2 . . . . 2 . . . . . . . . . . . Operators 5 | . 1 . 1 1 1 . . . . 1 . . . . . . . . . . . Skim 15 | . 6 . 2 4 3 . . . . . . . . . . . . . . . . Fabricators 3 | . . . . . 3 . . . . . . . . . . . . . . . . Recompile 3 | . . . . . 3 . . . . . . . . . . . . . . . . Repair Stations 1 | . . . . . . . . . . . . . . . 1 . . . . . . Patch 1 | . . . . . . . . . . . . . . . 1 . . . . . . Recycling Units . | . . . . . . . . . . . . . . . . . . . . . . Scanalyzers . | . . . . . . . . . . . . . . . . . . . . . . Garrison Access . | . . . . . . . . . . . . . . . . . . . . . . Data Cores Recovered 3 | . . . . . . . . . . 1 . . . . 1 . . . . 1 . Used . | . . . . . . . . . . . . . . . . . . . . . . Hacking Detections 58 | . 10 . 9 8 10 . . . . 10 . . . . 5 . . . . 3 3 Full Trace Events 3 | . . . 1 . 2 . . . . . . . . . . . . . . . . Feedback Events . | . . . . . . . . . . . . . . . . . . . . . . Feedback Blocked . | . . . . . . . . . . . . . . . . . . . . . . Robot Schematics Acquired 8 | . . . . . . . . 4 . . . . 4 . . . . . . . . Robots Built . | . . . . . . . . . . . . . . . . . . . . . . Authchips . | . . . . . . . . . . . . . . . . . . . . . . Time . | . . . . . . . . . . . . . . . . . . . . . . Total Robot Build Rating . | . . . . . . . . . . . . . . . . . . . . . . Part Schematics Acquired 58 | . . . 1 2 3 . . 10 . 1 . . 15 . 10 . . . . 16 . Parts Built 5 | . . . . . 4 . . . . . . . . . 1 . . . . . . Authchips 1 | . . . . . . . . . . . . . . . 1 . . . . . . Time 358 | . . . . . 274 . . . . . . . . . 84 . . . . . . Total Part Build Rating 24 | . . . . . 20 . . . . . . . . . 4 . . . . . . Part Studies Acquired 12 | . . . 4 . . . . . . 5 . . . . 1 . . . . 2 . Parts Repaired 3 | . . . 1 1 . . . . . . . . . . . . . . . 1 . Time 108 | . . . 26 26 . . . . . . . . . . . . . . . 56 . Parts Recycled . | . . . . . . . . . . . . . . . . . . . . . . Recycled Matter . | . . . . . . . . . . . . . . . . . . . . . . Retrieved Matter . | . . . . . . . . . . . . . . . . . . . . . . Retrieved Components 3 | . 3 . . . . . . . . . . . . . . . . . . . . Parts Scanalyzed 2 | . . . 1 . . . . . . 1 . . . . . . . . . . . Part Schematics Acquired 2 | . . . 1 . . . . . . 1 . . . . . . . . . . . Parts Damaged . | . . . . . . . . . . . . . . . . . . . . . . Bothacking | -11 -10 -10 -8 -8 -7 -7 -7 -7 -6 -6 -6 -6 -6 -5 -5 -5 -5 -5 -4 -4 -4 ------------ Run | Yrd Mat Sub Mat Sto Fac Low Low Dat Pro Fac Low Low Zio Pro Fac Upp Upp War Pro Fac Ext Used RIF Installer . | . . . . . . . . . . . . . . . . . . . . . . Robots Hacked 1 | . 1 . . . . . . . . . . . . . . . . . . . . Non-combat 1 | . 1 . . . . . . . . . . . . . . . . . . . . Combat . | . . . . . . . . . . . . . . . . . . . . . . Robot Hacks Applied 1 | . 1 . . . . . . . . . . . . . . . . . . . . parse_system 1 | . 1 . . . . . . . . . . . . . . . . . . . . Relay Couplers Released . | . . . . . . . . . . . . . . . . . . . . . . Fabnet Peak Effective % . | . . . . . . . . . . . . . . . . . . . . . . Robots Rewired 18 | . . . . . . . . . . . . . . . 1 . 1 . . . 16 Allies Hacked 3 | . . . . . . . . . . . . . . . 3 . . . . . . Hacks Repelled . | . . . . . . . . . . . . . . . . . . . . . . Allies | -11 -10 -10 -8 -8 -7 -7 -7 -7 -6 -6 -6 -6 -6 -5 -5 -5 -5 -5 -4 -4 -4 -------- Run | Yrd Mat Sub Mat Sto Fac Low Low Dat Pro Fac Low Low Zio Pro Fac Upp Upp War Pro Fac Ext Total Allies 57 | . . . . 2 1 . . . . 1 . . 4 . 7 . 1 . . 7 34 Largest Group 18 | . . . . 2 1 . . . . 1 . . 4 4 4 1 2 . . 4 18 Highest-Rated Group 869 | . . . . 62 10 . . . . 10 . . 155 155 295 49 79 . . 288 869 Highest-Rated Ally 159 | . . . . 31 10 . . . . 10 . . 41 41 85 49 49 . . 96 159 Zionite Dispatches 9 | . . . . . . . . . . . . . . . 3 . . . . 2 4 Heavy 1 | . . . . . . . . . . . . . . . 1 . . . . . . Light 3 | . . . . . . . . . . . . . . . 1 . . . . 1 1 Fire 2 | . . . . . . . . . . . . . . . . . . . . 1 1 Hero 1 | . . . . . . . . . . . . . . . . . . . . . 1 Offense Resupply 1 | . . . . . . . . . . . . . . . 1 . . . . . . Infowar Resupply 1 | . . . . . . . . . . . . . . . . . . . . . 1 Total Orders 7 | . . . . . . . . . . . . . . . 2 . 2 . . . 3 STAY 3 | . . . . . . . . . . . . . . . 1 . 1 . . . 1 FOLLOW 2 | . . . . . . . . . . . . . . . . . 1 . . . 1 DROP 2 | . . . . . . . . . . . . . . . 1 . . . . . 1 Ally Attacks 436 | . . . . 9 . . . . . . . . . 21 31 8 14 . . 24 329 Total Damage 13988 | . . . . 155 . . . . . . . . . 484 1667 275 416 . . 811 10180 Kills 86 | . . . . 1 . . . . . . . . . 3 8 3 2 . . 6 63 Allies Corrupted 5 | . . . . . . . . . . . . . . . 1 . . . . 2 2 Allies Melted 2 | . . . . . . . . . . . . . . . . . . 2 . . . Intel | -11 -10 -10 -8 -8 -7 -7 -7 -7 -6 -6 -6 -6 -6 -5 -5 -5 -5 -5 -4 -4 -4 ------- Run | Yrd Mat Sub Mat Sto Fac Low Low Dat Pro Fac Low Low Zio Pro Fac Upp Upp War Pro Fac Ext Active Infowar (turns) 22123 | 16 714 1264 1818 552 577 . . . 2 1069 1209 1013 2331 1111 1742 738 678 1532 1968 2202 1587 Optics 10442 | . . . . . . . . . . . . . . . 1737 738 678 1532 1968 2202 1587 Sensors 8000 | . . . . . . . . . . 1069 1209 1013 2331 . . . . . . 926 1452 Seismic 13078 | 16 714 1264 1818 552 577 . . . . . . . . 1111 1555 716 569 1482 1675 1029 . Machine Analysis 2 | . . . . . . . . . 2 . . . . . . . . . . . . Jamming 1324 | . . . . . . . . . . . . . . . . . . . 58 1266 . Robot Analysis Total 2 | . 2 . . . . . . . . . . . . . . . . . . . . Derelict Logs Recovered 15 | . . 1 . . . 2 1 . 1 . 1 1 2 3 . 1 1 . 1 . . Drone Launches . | . . . . . . . . . . . . . . . . . . . . . . Drone Recoveries . | . . . . . . . . . . . . . . . . . . . . . . Zionite Intel Received 10 | . . . . . . . . . . . . . . . 5 . . . . 5 . Emergency Access 2 | . . . . . . . . . . . . . . . 1 . . . . 1 . Component Stockpiles 1 | . . . . . . . . . . . . . . . . . . . . 1 . Prototype Stockpiles 1 | . . . . . . . . . . . . . . . . . . . . 1 . Component Schematics 1 | . . . . . . . . . . . . . . . . . . . . 1 . Prototype Schematics 1 | . . . . . . . . . . . . . . . 1 . . . . . . Trap Installations 1 | . . . . . . . . . . . . . . . 1 . . . . . . Active Terminals 1 | . . . . . . . . . . . . . . . 1 . . . . . . Active Garrisons 2 | . . . . . . . . . . . . . . . 1 . . . . 1 . Exploration | -11 -10 -10 -8 -8 -7 -7 -7 -7 -6 -6 -6 -6 -6 -5 -5 -5 -5 -5 -4 -4 -4 ------------- Run | Yrd Mat Sub Mat Sto Fac Low Low Dat Pro Fac Low Low Zio Pro Fac Upp Upp War Pro Fac Ext Turns Passed 32797 | 130 1709 1346 2354 1631 1807 1999 1250 948 1313 1174 1292 1013 3150 1234 1742 738 678 1532 1968 2202 1587 Spaces Moved 17712 | 63 755 437 994 630 884 745 465 322 488 761 1041 854 1848 890 1121 551 446 968 1199 1311 939 Core 38 | 37 . . . . . . . . . . . . . . . . . . . . 1 Treads 3243 | . 349 437 994 630 833 . . . . . . . . . . . . . . . . Legs 14431 | 26 406 . . . 51 745 465 322 488 761 1041 854 1848 890 1121 551 446 968 1199 1311 938 Wheels . | . . . . . . . . . . . . . . . . . . . . . . Hover . | . . . . . . . . . . . . . . . . . . . . . . Flight . | . . . . . . . . . . . . . . . . . . . . . . Fastest Speed 50 | 50 120 240 156 156 140 250 250 126 250 115 115 115 115 115 115 125 125 125 125 112 50 Average Speed 148 | 78 152 240 159 156 156 250 250 237 250 123 115 115 167 115 118 125 125 125 125 118 115 Slowest Speed 360 | 120 240 240 160 156 250 250 250 360 250 214 115 115 194 115 235 125 125 235 125 235 247 Overloaded Moves . | . . . . . . . . . . . . . . . . . . . . . . Propulsion Burnouts . | . . . . . . . . . . . . . . . . . . . . . . Robots Hopped . | . . . . . . . . . . . . . . . . . . . . . . Potential Cave-ins 4 | . . . . . . . . . . . 2 . . . 2 . . . . . . Cave-ins Triggered 1 | . . . . . . . . . . . . . . . . . . . . . 1 Exploration Rate (%) 68 | 4 96 31 88 92 28 92 64 80 86 26 88 87 90 93 38 63 69 89 83 33 78 Regions Visited 21 Branch Regions 15 Pre-discovered Areas 7 | . 2 1 . . . 1 . 1 . . . 1 . . . . . . 1 . . Known Exits Taken 14 | . . 1 1 1 1 1 . . 1 1 1 1 . . 1 1 1 . 1 1 . Unknown Exits Taken 7 | 1 1 . . . . . 1 1 . . . . 1 1 . . . 1 . . . Scrap Searched 34 | . . 4 . . . 2 3 . 4 . 7 4 1 1 . 2 2 . 4 . . Spaces Dug 196 | . 6 . 18 5 3 . 21 . 22 7 3 6 . . 15 . . . 71 17 2 Terrain Destroyed 705 | . 7 . 39 7 29 10 55 . 59 57 40 13 . 2 89 17 39 17 132 48 45 Melee 17 | . . . . 1 3 . . . . . . . . . . . . . 13 . . Projectile 451 | . 7 . 33 6 14 10 2 . 24 26 18 13 . 2 41 17 19 7 119 48 45 AOE 237 | . . . 6 . 12 . 53 . 35 31 22 . . . 48 . 20 10 . . . Terrain Rammed . | . . . . . . . . . . . . . . . . . . . . . . Walls Destroyed . | . . . . . . . . . . . . . . . . . . . . . . Machines Disabled . | . . . . . . . . . . . . . . . . . . . . . . Actions | -11 -10 -10 -8 -8 -7 -7 -7 -7 -6 -6 -6 -6 -6 -5 -5 -5 -5 -5 -4 -4 -4 --------- Run | Yrd Mat Sub Mat Sto Fac Low Low Dat Pro Fac Low Low Zio Pro Fac Upp Upp War Pro Fac Ext Total 22361 | 105 1179 659 1574 1123 1127 809 507 439 532 929 1104 871 1901 1090 1403 577 534 1255 1528 1803 1312 Wait 2499 | 1 223 160 333 271 68 7 6 19 7 94 36 4 31 190 136 12 44 184 223 279 171 Move 17691 | 62 754 436 993 629 883 744 464 321 487 760 1040 853 1847 889 1120 550 445 967 1198 1310 939 Hop . | . . . . . . . . . . . . . . . . . . . . . . Pick Up 206 | 10 28 8 34 15 20 6 2 15 1 6 1 1 4 1 12 . 3 12 2 20 5 Fast Attach 63 | 4 . . 3 4 3 2 1 6 . 2 . . 3 . 2 . 2 14 2 11 4 Attach 99 | 3 2 . 12 1 18 3 4 9 . 2 1 . 3 . 5 . 4 . 1 14 17 Detach 14 | . . . . . 2 . . 4 . 2 . . 1 . 1 . . . 1 3 . Swap 326 | . 23 9 50 41 19 2 4 3 5 18 9 6 6 5 26 4 5 13 11 47 20 Drop 251 | 2 16 8 40 32 21 6 3 17 2 6 1 2 5 1 16 . 5 26 4 27 11 Fire 963 | 23 73 38 101 128 88 34 23 . 30 39 16 5 1 3 68 11 18 39 70 89 66 Melee 67 | . 2 . . 1 3 . . 45 . . . . . . . . . . 16 . . Ram . | . . . . . . . . . . . . . . . . . . . . . . Kick 4 | . . . . . . . . . . . . . . . . . . . . 3 1 Crush 11 | . . . 8 1 2 . . . . . . . . . . . . . . . . Escape Stasis 5 | . . . . . . . . . . . . . . . 5 . . . . . . Rewire 103 | . . . . . . 5 . . . . . . . . 12 . 8 . . . 78 Trap 58 | . 58 . . . . . . . . . . . . . . . . . . . . Miscellaneous 1 | . . . . . . . . . . . . . . 1 . . . . . . . Route ------- -11/Scrapyard -10/Materials (discovered 6 exits: [*Mat x3] / *Min x2 / [*Sub]) -10/Subcaves (discovered 2 exits: *Mat x2) -8/Materials (discovered 5 exits: *Fac x3 / *Sto x2) -8/Storage (discovered 2 exits: *Fac / *Rec) -7/Factory (discovered 2 exits: *Low x2) -7/Lower Caves -7/Lower Caves (discovered 2 exits: *Fac / *Dat) -7/Data Miner -6/Proximity Caves -6/Factory (discovered 2 exits: *Low x2) -6/Lower Caves -6/Lower Caves -6/Zion -5/Proximity Caves -5/Factory (discovered 4 exits: Fac x3 / *Upp) -5/Upper Caves -5/Upper Caves (discovered 2 exits: *Fac / *War) -5/Warlord -4/Proximity Caves -4/Factory (discovered 4 exits: *Res x2 / [*Upp] / *Ext) -4/Extension History --------- Turn | Location | Event 10 | -11/Scrapyard | Discovered new exit (range 15) 131 | -11/Scrapyard | Entered Materials 313 | -10/Materials | Build established: Mutant 383 | -10/Materials | Discovered new exit (range 10) 556 | -10/Materials | Discovered new exit (range 16) 603 | -10/Materials | Discovered new exit (range 9) 681 | -10/Materials | Discovered new exit (range 16) 1141 | -10/Materials | Discovered new exit (range 16) 1441 | -10/Materials | Learned location of Subcaves (-10) 1476 | -10/Materials | Loaded intel: 26 non-interactive machine locations 1502 | -10/Materials | Learned location of 1 exit from Storage 1520 | -10/Materials | Identified exit to Mines 1520 | -10/Materials | Learned location of 1 exit from Materials 1521 | -10/Materials | Learned location of 2 exits from Materials 1522 | -10/Materials | Learned location of 1 exit from Storage 1523 | -10/Materials | Learned 4 Subcaves zone layouts 1527 | -10/Materials | Loaded intel: 10 trap records 1539 | -10/Materials | Learned location of 2 exits from Subcaves 1840 | -10/Materials | Entered Subcaves 1841 | -10/Subcaves | Approached by a straggling Scientist 1841 | -10/Subcaves | Identified exit to Materials 2000 | -10/Subcaves | Core integrity fell below 50% 2237 | -10/Subcaves | Learned location of Storage (-8) 2277 | -10/Subcaves | Shifting Twisted Machinery released Sub. Power Source 2279 | -10/Subcaves | Shifting Twisted Machinery released Sub. Laser 2718 | -10/Subcaves | Core integrity fell below 20% 2824 | -10/Subcaves | Shifting Twisted Machinery released Riot Gun 2826 | -10/Subcaves | Shifting Twisted Machinery released Flamer 3186 | -10/Subcaves | Entered Materials 3186 | -8/Materials | Evolved 4 slots: Propulsion x2, Utility x1, Weapon x1 3187 | -8/Materials | Identified exit to Factory 3187 | -8/Materials | Identified exit to Storage 3507 | -8/Materials | Discovered exit to Storage (range 16) 3571 | -8/Materials | Build established: Scavenger-Gunner 3731 | -8/Materials | Repaired Lgt. Treads 3800 | -8/Materials | Garrison activated, responded to threat 3936 | -8/Materials | Discovered exit to Factory (range 13) 5301 | -8/Materials | Build established: Scavenger-Tank 5540 | -8/Materials | Entered Storage 5541 | -8/Storage | Identified exit to Recycling 6215 | -8/Storage | Used back door to open Recycling access 6290 | -8/Storage | Met a pair of Derelict thieves 6653 | -8/Storage | Garrison activated, responded to threat 6714 | -8/Storage | Destroyed 7 combat bots 6820 | -8/Storage | Build established: Tank 7084 | -8/Storage | Repaired Seismic Detector 7140 | -8/Storage | First assault squad dispatched 7171 | -8/Storage | Entered Factory 7171 | -7/Factory | Evolved 2 slots: Utility x2 7282 | -7/Factory | Identified exit to Lower Caves 7575 | -7/Factory | Fabricated KE Penetrator? 8200 | -7/Factory | Garrison activated, responded to threat 8203 | -7/Factory | Build established: Hacker-Gunner 8409 | -7/Factory | Garrison activated, responded to threat 8633 | -7/Factory | Fabricated Lgt. Armored Exoskeleton? 8771 | -7/Factory | First assault squad dispatched 8856 | -7/Factory | Fabricated Lgt. Armored Exoskeleton? 8978 | -7/Factory | Entered Lower Caves 9289 | -7/Lower Caves | Build established: Tank 9765 | -7/Lower Caves | Identified exit to Lower Caves 10662 | -7/Lower Caves | Learned location of Zion (-6) 10977 | -7/Lower Caves | Entered another Lower Caves area 11279 | -7/Lower Caves | Build established: Derelict-Tank 11313 | -7/Lower Caves | Discovered new exit (range 11) 11447 | -7/Lower Caves | Encountered a Warlord checkpoint 11798 | -7/Lower Caves | Spotted B-75 Beast 11822 | -7/Lower Caves | Destroyed B-75 Beast 11838 | -7/Lower Caves | Learned location of 1 exit from Proximity Caves 11945 | -7/Lower Caves | Discovered new exit (range 10) 12227 | -7/Lower Caves | Entered Data Miner 12229 | -7/Data Miner | Discovered new exit (range 7) 12277 | -7/Data Miner | Met Data Miner 12339 | -7/Data Miner | Learned location of Section 7 (-2) 12339 | -7/Data Miner | Acquired the access code to Warlord's prototype stash 12345 | -7/Data Miner | Build established: Mutant 12377 | -7/Data Miner | Received God Mode back door access code from Data Miner 12411 | -7/Data Miner | Destroyed Data Miner 12417 | -7/Data Miner | Data Conduit disabled 12649 | -7/Data Miner | Core integrity fell below 50% 12715 | -7/Data Miner | Found Prototype Device 12715 | -7/Data Miner | Identified Exp. Thermal Shield 12817 | -7/Data Miner | Found Prototype Hackware 12820 | -7/Data Miner | Found Prototype Hackware 12824 | -7/Data Miner | Found Prototype Hackware 13175 | -7/Data Miner | Entered Proximity Caves 13176 | -6/Proximity Caves | Identified exit to Factory 13178 | -6/Proximity Caves | Spotter reported a threat 13282 | -6/Proximity Caves | Build established: Tank 13475 | -6/Proximity Caves | Learned Factory stockpile data 13482 | -6/Proximity Caves | Spotted B-75 Beast 13517 | -6/Proximity Caves | Destroyed B-75 Beast 14488 | -6/Proximity Caves | Entered Factory 14488 | -6/Factory | Evolved 2 slots: Propulsion x2 14852 | -6/Factory | Build established: Skirmisher 14896 | -6/Factory | Identified Ghost Barrier 14896 | -6/Factory | Identified System Mapper 14896 | -6/Factory | Identified Quantum Router 15033 | -6/Factory | Identified exit to Lower Caves 15210 | -6/Factory | Build established: Scientist-Skirmisher 15549 | -6/Factory | Destroyed 7 combat bots 15662 | -6/Factory | Entered Lower Caves 15937 | -6/Lower Caves | Spotted B-75 Beast 16300 | -6/Lower Caves | Discovered new exit (range 14) 16316 | -6/Lower Caves | Identified exit to Lower Caves 16381 | -6/Lower Caves | Learned location of 1 exit from Factory 16954 | -6/Lower Caves | Entered another Lower Caves area 17759 | -6/Lower Caves | Found DRS Beacon 17918 | -6/Lower Caves | Discovered new exit (range 7) 17966 | -6/Lower Caves | Identified exit to Zion 17967 | -6/Lower Caves | Entered Zion 18032 | -6/Zion | System corruption cleaned by Quarantine Array 18098 | -6/Zion | Discovered new exit (range 16) 18483 | -6/Zion | Given the Hacking Drone Bay 18500 | -6/Zion | Learned Factory emergency access door positions 18537 | -6/Zion | Found Prototype Launcher 18537 | -6/Zion | Identified Rocket Array 18939 | -6/Zion | Learned 8 Factory zone layouts 19017 | -6/Zion | Learned 8 Factory zone layouts 19760 | -6/Zion | Met Imprinter 19798 | -6/Zion | Imprinted 19800 | -6/Zion | Declared Zion's savior 20014 | -6/Zion | Visited the Megawrench Repair Shop 20606 | -6/Zion | Build established: Scientist-Gunner 20630 | -6/Zion | Found CR-A16's Pointy Stick 20934 | -6/Zion | Megawrench repaired 12 parts 21117 | -6/Zion | Entered Proximity Caves 21117 | -5/Proximity Caves | Accompanied by 4 allies 21172 | -5/Proximity Caves | Activated DRS Beacon 21664 | -5/Proximity Caves | Learned 12 Factory zone layouts 22165 | -5/Proximity Caves | Learned Factory terminal intel 22187 | -5/Proximity Caves | Discovered new exit (range 7) 22351 | -5/Proximity Caves | Entered Factory 22351 | -5/Factory | Accompanied by 3 allies 22351 | -5/Factory | Evolved 2 slots: Utility x2 22352 | -5/Factory | Identified exit to Factory 22353 | -5/Factory | Identified exit to Upper Caves 22355 | -5/Factory | Loaded intel: 26 terminal locations 22423 | -5/Factory | Lost 3 allies 22556 | -5/Factory | Zion Heavy squad teleported in 22737 | -5/Factory | Found Prototype Protection 22737 | -5/Factory | Identified Zio. Weapon Casing 22801 | -5/Factory | Retrieved Zion intel report: Prototype Schematics 22813 | -5/Factory | Retrieved Zion intel report: Emergency Access 22814 | -5/Factory | Zion Light squad teleported in 22865 | -5/Factory | Found Zio. Weapon Casing 22872 | -5/Factory | Lost 4 allies 22981 | -5/Factory | Retrieved Zion intel report: Active Garrisons 23004 | -5/Factory | Retrieved Zion intel report: Trap Installations 23319 | -5/Factory | Spotted B-75 Beast 23335 | -5/Factory | Destroyed B-75 Beast 23416 | -5/Factory | Retrieved Zion intel report: Active Terminals 23417 | -5/Factory | Zion Offense Resupply teleported in 23517 | -5/Factory | Fabricated Lgt. Armored Exoskeleton (x1) 23680 | -5/Factory | Terminal network hard line cut 23809 | -5/Factory | Build established: Gunner 24093 | -5/Factory | Entered Upper Caves 24093 | -5/Upper Caves | Accompanied by 1 ally 24117 | -5/Upper Caves | Attracted the attention of an 0b10 checkpoint 24173 | -5/Upper Caves | Identified exit to Upper Caves 24228 | -5/Upper Caves | Spotted B-75 Beast 24831 | -5/Upper Caves | Entered another Upper Caves area 24831 | -5/Upper Caves | Accompanied by 1 ally 24832 | -5/Upper Caves | Identified exit to Warlord 24840 | -5/Upper Caves | Learned Factory non-interactive machine intel 24884 | -5/Upper Caves | Spotted B-75 Beast 24914 | -5/Upper Caves | Discovered exit to Factory (range 5) 25201 | -5/Upper Caves | Attracted the attention of an 0b10 outpost 25356 | -5/Upper Caves | Attracted the attention of an 0b10 checkpoint 25411 | -5/Upper Caves | Destroyed 8 combat bots 25509 | -5/Upper Caves | Entered Warlord 25552 | -5/Warlord | System corruption cleaned by Quarantine Array 25874 | -5/Warlord | Build established: Mutant 25971 | -5/Warlord | Opened Warlord's prototype stash 25991 | -5/Warlord | Found Prototype Device 25991 | -5/Warlord | Identified Exp. Phase Shifter 25998 | -5/Warlord | Found Prototype Device 25998 | -5/Warlord | Identified Thermal Barrier 26001 | -5/Warlord | Found Prototype Processor 26001 | -5/Warlord | Identified Exp. Core Analyzer 26008 | -5/Warlord | Found Prototype Reactor 26167 | -5/Warlord | Warlord's base attacked by MAIN.C 26173 | -5/Warlord | Found Prototype Energy Gun 26173 | -5/Warlord | Identified Vortex Rifle 26176 | -5/Warlord | Found Vortex Rifle 26181 | -5/Warlord | Found Prototype Energy Cannon 26183 | -5/Warlord | Found Prototype Energy Cannon 26187 | -5/Warlord | Identified Vortex Driver (x2) 26190 | -5/Warlord | Found Prototype Launcher 26368 | -5/Warlord | P-80 Master assimilated allied X6-LLT(g) 26457 | -5/Warlord | Build established: Gunner 26484 | -5/Warlord | Warlord forces counterattacked 26575 | -5/Warlord | Lost 4 allies 26591 | -5/Warlord | Spotted Striker 26593 | -5/Warlord | Destroyed Striker 26608 | -5/Warlord | Spotted Executioner 26657 | -5/Warlord | Identified Vortex Catalyst Activator 26685 | -5/Warlord | Lost 26 allies 26731 | -5/Warlord | Spotted B-86 Titan 26732 | -5/Warlord | Spotted B-75 Beast 26764 | -5/Warlord | Spotted Executioner 26780 | -5/Warlord | Lost 3 allies 26827 | -5/Warlord | Lost 3 allies 26830 | -5/Warlord | Found Prototype Ballistic Cannon 26830 | -5/Warlord | Identified Hvy. Autocannon 26842 | -5/Warlord | Warlord base infiltrated, sounded retreat 26844 | -5/Warlord | Spotted Executioner 26847 | -5/Warlord | Destroyed Executioner 26868 | -5/Warlord | Destroyed 11 combat bots 26902 | -5/Warlord | Spotted Striker 26915 | -5/Warlord | Spotted B-86 Titan 26916 | -5/Warlord | Spotted B-75 Beast 26920 | -5/Warlord | Rebuked by Warlord 27011 | -5/Warlord | Lost 10 allies 27015 | -5/Warlord | Discovered new exit (range 9) 27041 | -5/Warlord | Entered Proximity Caves 27064 | -4/Proximity Caves | Spotted B-86 Titan 27070 | -4/Proximity Caves | Destroyed B-86 Titan 27113 | -4/Proximity Caves | Build established: Scavenger-Gunner 27591 | -4/Proximity Caves | Learned location of Armory (-3) 28785 | -4/Proximity Caves | Attracted the attention of an 0b10 outpost 28902 | -4/Proximity Caves | Discovered exit to Factory (range 15) 29009 | -4/Proximity Caves | Entered Factory 29009 | -4/Factory | Evolved 2 slots: Power x1, Utility x1 29010 | -4/Factory | Loaded intel: 223 non-interactive machine locations 29156 | -4/Factory | Found Unknown Device 29156 | -4/Factory | Identified Quantum Capacitor 29265 | -4/Factory | Retrieved Zion intel report: Emergency Access 29266 | -4/Factory | Zion Light squad teleported in 29605 | -4/Factory | Discovered new exit (range 10) 29686 | -4/Factory | Retrieved Zion intel report: Component Schematics 29718 | -4/Factory | Build established: Messiah-Tank 29815 | -4/Factory | Discovered new exit (range 16) 30058 | -4/Factory | Found Zio. Weapon Casing 30074 | -4/Factory | Retrieved Zion intel report: Component Stockpiles 30123 | -4/Factory | Repaired Imp. Weapon Cycler 30184 | -4/Factory | Retrieved Zion intel report: Prototype Stockpiles 30298 | -4/Factory | Discovered new exit (range 16) 30310 | -4/Factory | Retrieved Zion intel report: Active Garrisons 30311 | -4/Factory | Zion Fire squad teleported in 30312 | -4/Factory | Terminal network hard line cut 30337 | -4/Factory | Identified exit to Research 30340 | -4/Factory | Build established: Messiah-Skirmisher 30761 | -4/Factory | Destroyed 10 combat bots 31110 | -4/Factory | Build established: Scavenger-Skirmisher 31198 | -4/Factory | Discovered new exit (range 9) 31209 | -4/Factory | Identified exit to Extension 31211 | -4/Factory | Entered Extension 31234 | -4/Extension | Zion hero teleported in (1C-UTU) 31299 | -4/Extension | Zion Light squad teleported in 31389 | -4/Extension | Zion Fire squad teleported in 31746 | -4/Extension | Spotted B-86 Titan 31753 | -4/Extension | Rescued A7 31811 | -4/Extension | Spotted B-86 Titan 31824 | -4/Extension | Destroyed B-86 Titan 31837 | -4/Extension | Allies destroyed B-86 Titan 31863 | -4/Extension | Lost 5 allies 31900 | -4/Extension | Rescued a captive Derelict 31901 | -4/Extension | Rescued a captive Derelict 31942 | -4/Extension | Zion Infowar Resupply teleported in 31961 | -4/Extension | First assault squad dispatched 32005 | -4/Extension | Rescued a captive Derelict 32006 | -4/Extension | Rescued a captive Derelict 32039 | -4/Extension | Rescued a captive Derelict 32044 | -4/Extension | Rescued a captive Derelict 32158 | -4/Extension | Found Zio. Weapon Casing 32350 | -4/Extension | Rescued a captive Derelict 32352 | -4/Extension | Rescued a captive Derelict 32434 | -4/Extension | Rescued a captive Derelict 32442 | -4/Extension | Build established: Messiah-Skirmisher 32542 | -4/Extension | High security lockdown imminent 32585 | -4/Extension | Lost 4 allies 32622 | -4/Extension | High security lockdown engaged 32691 | -4/Extension | P-70 Sage assimilated allied GV-IP7(h) 32700 | -4/Extension | Identified Vortex Chain Reactor 32707 | -4/Extension | Core integrity fell below 50% 32723 | -4/Extension | Lost 17 allies 32762 | -4/Extension | Destroyed 12 combat bots 32765 | -4/Extension | Lost 14 parts (2p6n4u2w) 32794 | -4/Extension | Core integrity fell below 20% 32797 | -4/Extension | Crushed by falling debris 32797 | -4/Extension | System corruption reached 10% 32798 | -4/Extension | Released all parts (7) 32798 | -4/Extension | Destroyed by G-73 Enforcer with Phase Gun Last Messages --------------- 32792_ System Mapper destroyed. 32792_ Ghost Barrier destroyed. 32792_ System corrupted by crushing effect (+4). 32792_ Knocked back. 32793_ M-36 Artificer repairs G-67 Veteran Flexi-carbon Leg. 32794_ The unstable cave ceiling collapses. 32794_ Lgt. Quantum Reactor crushed. 32794_ Flexi-carbon Leg+ destroyed. 32794_ Knocked back. 32796_ Zio. Laser-S destroyed. 32797_ The unstable cave ceiling collapses. 32797_ Crushed by falling debris. 32798_ Released Adv. Signal Interpreter. 32798_ Released Enh. Optical Array. 32798_ Released Hcp. Storage Unit. 32798_ Released Adv. Cryofiber Web. 32798_ Released Exp. Heat Sink. 32798_ Released Lgt. Antimatter Reactor+. 32798_ Released Quantum Router. Map ----- +----------------------------------------------------+ | | | | | | | | | | | | | ???????????####???????????????????????????? | | ???????????#T"########????????????????????? | | ############ "## #????????????????????? | | ###########????##????? | | T #???# ?????? | | #####"] #??# ??????? | | ################ #???##%% ###"###????? | | ???????????????#######????#[*[[ #????? | | ??????????????????????#####*=%= #?##?? | | ??????????????????##### ##"%[=[ # #?? | | ????????????????#### # ##=%%/ = "#???? | | ????????????????# ### =/ =%= "#???? | | ??????????????### !!*%!!! #????? | | ??????????????# [ [/[%]=%=T"###??? | | ??????????###### !%/%%[%*=! " #??? | | ??????????# ibg ==%%=%%||" #?? | | ??????????#### glg=%%=[%|!%]; #??? | | ?????????????### # # #bp##!%=*=%*!%[ #?? | | ???????????????## #!*#[=*[!!!%[; #? | | ????????????????# ## @ =/=*[%%# # #? | | ????????????????### # #### ###!|=;%#????? | | ??????????????????### ###???##??? #%#????? | | ????????????????????##???????????? #?#????? | | ???????????????????????????????????#??????? | | ??????????????????????????????????????????? | | ??????????????????????????????????????????? | | ??????????????????????????????????????????? | | ??????????????????????????????????????????? | | ??????????????????????????????????????????? | | ??????????????????????????????????????????? | | ??????????????????????????????????????????? | | ??????????????????????????????????????????? | | ??????????????????????????????????????????? | | ??????????????????????????????????????????? | | ??????????????????????????????????????????? | | ??????????????????????????????????????????? | | ??????????????????????????????????????????? | | ??????????????????????????????????????????? | | ??????????????????????????????????????????? | | ??????????????????????????????????????????? | | ??????????????????????????????????????????? | | ??????????????????????????????????????????? | | ??????????????????????????????????????????? | | ??????????????????????????????????????????? | +----------------------------------------------------+ Best States ------------- Heat Dissipation 102 Coolant Potential 100 Energy Generation 55 Energy Capacity 700 Matter Stores 300 Matter Capacity 300 Sight Range 22 Robot Scan Range 18 Terrain Scan Density 10 Jamming Range 14 Base Temperature (-) 200 Armor Coverage 675 Resistance: KI 30 Resistance: TH 15 Propulsion Shielding 90 Weapon Shielding 100 Weapon Cycling 20 Evasion (%) 55 Core Analysis 8 Recoil Reduction 4 Energy Filtering 50 Offensive Hacking 30 Defensive Hacking 10 Authchip Count 3 Item Schematics ----------------- Hrd. Medium Armor Plating | -8/Materials | Scanalyzed Med. Reactive Plating | -8/Storage | Hacked Med. Treads | -8/Storage | Hacked Mass Driver | -7/Factory | Hacked Lgt. Armored Exoskeleton | -7/Factory | Hacked Weapon Cycler | -7/Factory | Hacked Combat Drone Bay | -7/Data Miner | Free Lgt. Regenerative Plating | -7/Data Miner | Free Biomechanical Wings | -7/Data Miner | Free Gravity Neutralizer | -7/Data Miner | Free Antimatter Cannon | -7/Data Miner | Free Nuclear Pulse Array | -7/Data Miner | Free Point Defense System | -7/Data Miner | Free Hvy. Phase Cannon | -7/Data Miner | Free Gravmag Array | -7/Data Miner | Free Imp. Point Defense System | -7/Data Miner | Free Med. Reflective Plating | -6/Factory | Scanalyzed Imp. Medium Treads | -6/Zion | Archive Lrn. Proton Cannon | -6/Zion | Archive Adv. Heat Sink | -6/Zion | Archive Imp. Corruption Screen | -6/Zion | Archive Power Amplifier | -6/Zion | Archive Imp. Shock Absorption System | -6/Zion | Archive Adv. Sensor Array | -6/Zion | Archive Imp. Remote Force Field | -6/Zion | Archive Imp. Force Field | -6/Zion | Archive Matter Compressor | -6/Zion | Archive Hvy. Shock Bomb Launcher | -6/Zion | Archive Variable Charge Gun | -6/Zion | Archive Imp. Thermal Shield | -6/Zion | Archive Enh. Optical Array | -6/Zion | Archive Plasma Rifle | -6/Zion | Archive Ionic Axe | -5/Factory | Z-intel Neutron Cannon | -5/Factory | Z-intel Imp. Cesium-ion Thruster | -5/Factory | Z-intel Prc. Matter Filter | -5/Factory | Z-intel Tesla Bomb Launcher | -5/Factory | Z-intel Hpw. Field Laser | -5/Factory | Z-intel Exp. Utility Shielding | -5/Factory | Z-intel Enh. Flexi-carbon Leg | -5/Factory | Z-intel Cld. Particle Cannon | -5/Factory | Z-intel Imp. Energy Well | -5/Factory | Z-intel Thunder Leg | -4/Factory | Z-intel Wave Gun | -4/Factory | Z-intel Adv. ECM Suite | -4/Factory | Z-intel Matter Neutralizer | -4/Factory | Z-intel Imp. Focal Shield | -4/Factory | Z-intel Jamming Amplifier | -4/Factory | Z-intel Hardlight Generator | -4/Factory | Z-intel Imp. Propulsion Shielding | -4/Factory | Z-intel System Shield | -4/Factory | Z-intel Disruptor Cannon | -4/Factory | Z-intel Lrg. Storage Unit | -4/Factory | Z-intel Mic. Fission Core | -4/Factory | Z-intel Adv. Particle Charger | -4/Factory | Z-intel Med. Insulated Plating | -4/Factory | Z-intel Imp. Component Analysis Suite | -4/Factory | Z-intel Adv. Concussive RPG | -4/Factory | Z-intel Robot Schematics ------------------ B-48 Gladiator | -7/Data Miner | Free G-47 Trooper | -7/Data Miner | Free W-25 Informer | -7/Data Miner | Free L-41 Fighter | -7/Data Miner | Free A-02 Transporter | -6/Zion | Archive H-55 Commando | -6/Zion | Archive R-06 Scavenger | -6/Zion | Archive G-73 Enforcer | -6/Zion | Archive Fabricated ------------ KE Penetrator | x2 | -7/Factory | Preloaded Lgt. Armored Exoskeleton | x1 | -7/Factory Lgt. Armored Exoskeleton | x1 | -7/Factory Lgt. Armored Exoskeleton | x1 | -5/Factory | Authchip Repaired ---------- Lgt. Treads | 10% | -8/Materials Seismic Detector | 20% | -8/Storage Imp. Weapon Cycler | 22% | -4/Factory Studied --------- Spread Laser | -8/Materials | Hacked Hvy. Particle Cannon | -8/Materials | Hacked Pulse Rifle | -8/Materials | Hacked Lgt. Nuclear Core | -8/Materials | Hacked Lgt. Angular Momentum Engine | -6/Factory | Hacked Lgt. Armored Exoskeleton | -6/Factory | Hacked Hvy. Plasma Cannon | -6/Factory | Hacked Arm. Leg | -6/Factory | Hacked Flexi-carbon Leg | -6/Factory | Hacked Fission Core | -5/Factory | Hacked Myomer Leg | -4/Factory | Hacked Lgt. Antimatter Reactor | -4/Factory | Hacked Alien Tech Used ----------------- None Achievements -------------- All Kinds Of Bad News Thread The Needle Around The Corner Challenges ------------ None Game ------ Seed DeliverySpacefoldInitializer Manual? 0 Play Time 05:05:24 Cumulative 432.5 hours Start 2025.11.27 @ 22:49:23 End 2025.11.28 @ 19:26:14 Sessions 16 Manual Loads 0 Difficulty Rogue Special Mode None Game No. 274 Rogue 274 Adventurer 0 Explorer 0 Win Type - Total 8 Types 5/0/2/0/0/0/0/1/0/0 Lore% 82 Gallery% 81 Achievement% 57 Wizard Run 0 Options --------- Layout 1 ASCII 0 Keyboard 0 Movement Numpad Keybinds 0 Fullscreen 1 Font 24/Smallcaps Map View 50x40 Zoom Use 0% Tactical HUD 1 Map Filters NONE Filters NONE Steam 1 RUN: 50d5579f-90ce-4e74-94d8-5b3b3fcd597a